bitfinex-derivatives/quotes_SOLF0:USTF0_20241015
["timestamp","ask_amount","ask_price","bid_price","bid_amount"]
[1728994994411,25.15,152.58,152.53,3.2783]
[1728994995110,3.2776,152.57,152.53,3.2783]
[1728994995905,25.15,152.6,152.49,1.3126]
[1728994996209,25.15,152.58,152.49,1.3126]
[1728994996411,5.46,152.57,152.49,1.3126]
[1728994996613,3.25199488,152.56,152.49,1.3126]
[1728994997214,3.2783,152.54,152.45,2.7883]
[1728994997511,5.46,152.53,152.45,4.1432]
[1728994997721,30.61,152.53,152.45,2.744]
[1728994997916,33.8886,152.53,152.45,2.744]
[1728994998112,25.15,152.53,152.39,25.15]
[1728994998419,5.46,152.52,152.46,3.2798]
[1728994999007,5.46,152.51,152.42,25.15]
[1728994999212,5.46,152.51,152.42,30.61]
[1728994999908,5.46,152.51,152.49,3.2792]
[1728995000416,5.46,152.51,152.42,30.61]
[1728995001220,5.46,152.51,152.48,3.2795]
[1728995001815,8.7389,152.51,152.46,3.2798]
[1728995002211,25.15,152.5,152.41,3.9806]
[1728995002412,28.4293,152.5,152.41,3.9806]
[1728995003018,28.4293,152.5,152.45,3.28]
[1728995004320,28.4293,152.5,152.46,3.28]
[1728995005119,5.46,152.49,152.41,3.9806]
[1728995005315,5.46,152.5,152.41,3.9806]
[1728995006120,5.46,152.5,152.43,3.2805]
[1728995006312,25.15,152.52,152.41,3.9806]
[1728995006515,5.46,152.5,152.41,3.9806]
[1728995007521,5.46,152.5,152.48,3.2796]
[1728995013830,3.21952085,152.53,152.41,3.9806]
[1728995013831,18.96952085,152.53,152.44,15.75]
[1728995014130,5.46,152.52,152.44,15.75]
[1728995014718,8.74882697,152.52,152.44,15.75]
[1728995015514,8.74882697,152.52,152.49,3.2793]
[1728995016319,15.75,152.51,152.49,3.2793]
[1728995016718,2.1809,152.5,152.43,15.75]
[1728995017723,17.9309,152.5,152.42,15.75]
[1728995018322,17.9309,152.5,152.41,3.9806]
[1728995018535,15.75,152.48,152.41,3.9806]
[1728995019127,17.9309,152.5,152.47,3.2797]
[1728995020834,17.9309,152.5,152.48,3.2795]
[1728995021133,17.9309,152.5,152.41,3.9806]
[1728995022128,5.46,152.49,152.46,3.2799]
[1728995023525,5.46,152.51,152.42,15.75]
[1728995023730,5.46,152.51,152.45,15.75]
[1728995024029,1.3759,152.56,152.49,15.75]
[1728995024231,5.46,152.56,152.49,15.75]
[1728995024435,5.46,152.56,152.5,1.3699]
[1728995024623,5.46,152.56,152.55,3.2781]
[1728995025037,19.05917164,152.57,152.55,3.2781]
[1728995025229,5.46,152.56,152.55,3.2781]
[1728995025835,5.46,152.56,152.54,3.2782]
[1728995027029,5.46,152.56,152.51,3.2787]
[1728995027236,5.46,152.56,152.5,1.3699]
[1728995028034,5.46,152.56,152.54,3.2781]
[1728995030039,15.75,152.58,152.51,15.75]
[1728995030234,15.75,152.6,152.51,15.75]
[1728995030427,5.46,152.59,152.52,15.75]
[1728995030626,17.1592,152.62,152.52,15.75]
[1728995030830,5.46,152.61,152.52,15.75]
[1728995031331,5.46,152.61,152.57,3.2775]
[1728995031730,20.4359,152.62,152.52,15.75]
[1728995031931,5.46,152.61,152.58,3.2773]
[1728995032537,5.46,152.61,152.52,15.75]
[1728995032738,5.46,152.61,152.59,3.2772]
[1728995035740,5.46,152.61,152.52,15.75]
[1728995035942,5.46,152.61,152.6,3.277]
[1728995036842,3.2771,152.6,152.58,3.2774]
[1728995037039,15.75,152.59,152.5,17.1199]
[1728995037241,15.75,152.55,152.5,1.3699]
[1728995037434,15.75,152.55,152.51,3.2788]
[1728995037640,15.75,152.55,152.5,1.3699]
[1728995038543,15.75,152.55,152.54,3.2783]
[1728995039343,5.46,152.56,152.54,3.2783]
[1728995039940,15.75,152.61,152.52,15.75]
[1728995040141,5.46,152.6,152.52,15.75]
[1728995040443,5.46,152.59,152.58,3.2774]
[1728995040747,5.46,152.6,152.54,15.75]
[1728995040951,5.46,152.6,152.59,3.2772]
[1728995041344,5.46,152.6,152.54,15.75]
[1728995041547,5.46,152.6,152.58,3.2773]
[1728995042144,5.46,152.61,152.54,15.75]
[1728995042347,5.46,152.61,152.55,1.2964]
[1728995042644,5.46,152.61,152.59,3.2771]
[1728995042854,15.75,152.63,152.55,1.2964]
[1728995043160,5.46,152.63,152.61,3.2766]
[1728995045552,19.0259,152.65,152.61,3.2766]
[1728995045754,5.46,152.64,152.62,3.2764]
[1728995046946,19.06858303,152.69,152.59,15.75]
[1728995047152,19.06858303,152.69,152.6,15.75]
[1728995047350,5.46,152.68,152.62,15.75]
[1728995047548,3.3060236,152.7,152.67,3.2755]
[1728995047744,5.46,152.72,152.64,15.75]
[1728995048052,15.75,152.75,152.64,15.75]
[1728995048053,5.46,152.73,152.67,15.75]
[1728995049244,5.46,152.73,152.71,3.2745]
[1728995049448,15.75,152.75,152.67,15.75]
[1728995049658,5.46,152.75,152.67,15.75]
[1728995049854,5.46,152.75,152.73,3.2741]
[1728995052069,5.46,152.77,152.7,15.75]
[1728995052261,5.46,152.77,152.71,1.4305]
[1728995053064,5.46,152.77,152.75,3.2738]
[1728995053661,5.46,152.77,152.71,1.4305]
[1728995053963,5.46,152.77,152.73,3.2741]
[1728995055068,3.2734,152.77,152.73,3.2741]
[1728995055263,5.46,152.77,152.73,3.2741]
[1728995055666,5.46,152.77,152.71,1.4305]
[1728995055865,3.22406149,152.86,152.72,15.75]
[1728995056060,18.3768,152.84,152.74,15.75]
[1728995056266,5.46,152.83,152.76,3.2734]
[1728995056569,8.7322,152.83,152.74,15.75]
[1728995056864,5.46,152.83,152.8,3.2726]
[1728995058062,8.7322,152.83,152.78,3.2731]
[1728995058266,5.46,152.83,152.75,1.3473]
[1728995058472,5.46,152.83,152.76,15.75]
[1728995058770,18.97406149,152.86,152.76,22.5326]
[1728995058771,5.46,152.84,152.76,22.5326]
[1728995059278,5.46,152.84,152.81,3.2723]
[1728995059867,5.46,152.84,152.76,22.5326]
[1728995060173,5.46,152.84,152.82,3.2723]
[1728995060767,5.46,152.84,152.82,3.2722]
[1728995061565,22.24566149,152.86,152.78,15.75]
[1728995061769,27.70566149,152.86,152.83,3.272]
[1728995063377,3.2713,152.87,152.84,3.2717]
[1728995063571,21.19,152.88,152.84,3.2717]
[1728995063776,3.24942225,152.87,152.84,3.2717]
[1728995064669,21.19,152.88,152.8,15.75]
[1728995064874,19.0207,152.9,152.8,15.75]
[1728995065074,19.0207,152.9,152.82,15.75]
[1728995065277,5.44,152.89,152.86,3.2713]
[1728995067579,19.0212,152.88,152.8,21.19]
[1728995067777,19.0212,152.88,152.8,5.44]
[1728995068582,19.021,152.88,152.84,3.2717]
[1728995071190,19.0216,152.86,152.8,3.2726]
[1728995071485,19.0216,152.86,152.79,6.8584]
[1728995071486,15.75,152.86,152.79,6.8584]
[1728995071886,15.75,152.86,152.82,3.2722]
[1728995073287,19.0214,152.86,152.82,3.2722]
[1728995073487,15.75,152.86,152.83,3.272]
[1728995073687,5.44,152.87,152.8,15.75]
[1728995073985,5.44,152.87,152.81,1.328]
[1728995074185,21.19,152.9,152.81,1.328]
[1728995074378,24.4607,152.9,152.81,1.328]
[1728995074979,24.4607,152.9,152.85,3.2715]
[1728995075383,24.4607,152.9,152.81,1.328]
[1728995076197,24.4607,152.9,152.86,3.2714]
[1728995076397,15.75,152.88,152.81,1.328]
[1728995076692,15.75,152.88,152.85,3.2716]
[1728995077594,15.75,152.88,152.81,1.328]
[1728995077595,19.0211,152.88,152.83,3.272]
[1728995077791,15.75,152.86,152.83,3.272]
[1728995078093,3.30323267,152.85,152.83,3.272]
[1728995079190,15.75,152.9,152.81,1.328]
[1728995079505,5.44,152.89,152.82,15.75]
[1728995079797,5.44,152.89,152.86,3.2712]
[1728995083200,19.0206,152.9,152.86,3.2712]
[1728995083495,24.4606,152.9,152.86,3.2712]
[1728995083701,21.19,152.9,152.82,15.75]
[1728995083993,5.44,152.9,152.87,3.271]
[1728995086292,3.2706,152.9,152.87,3.271]
[1728995086492,8.7106,152.9,152.87,3.271]
[1728995086697,5.44,152.9,152.87,3.271]
[1728995086897,15.75,152.88,152.79,1.4184]
[1728995087097,15.75,152.88,152.82,3.2721]
[1728995087295,3.2715,152.86,152.79,17.1684]
[1728995087796,15.75,152.86,152.81,3.2723]
[1728995088000,3.2718,152.85,152.81,3.2723]
[1728995088207,3.25479049,152.84,152.81,3.2723]
[1728995089696,3.2718,152.85,152.81,3.2723]
[1728995089904,3.27790549,152.84,152.81,3.2723]
[1728995091092,21.19,152.88,152.84,3.2716]
[1728995091295,5.44,152.88,152.81,15.75]
[1728995091499,15.75,152.9,152.81,15.75]
[1728995091500,21.19,152.9,152.82,15.75]
[1728995091702,3.2705,152.91,152.87,3.2711]
[1728995091904,8.7105,152.91,152.87,3.2711]
[1728995092598,5.44,152.91,152.83,1.3815]
[1728995092800,5.44,152.92,152.85,15.75]
[1728995093394,5.44,152.92,152.85,17.1631]
[1728995093595,5.44,152.92,152.89,3.2707]
[1728995094004,5.44,152.92,152.85,17.1631]
[1728995094203,8.7102,152.92,152.88,3.2709]
[1728995097404,8.7102,152.92,152.89,3.2708]
[1728995098909,5.44,152.92,152.85,17.1631]
[1728995099106,15.75,152.88,152.83,1.3815]
[1728995100105,3.2709,152.89,152.85,3.2716]
[1728995100305,15.75,152.88,152.85,3.2716]
[1728995102810,15.75,152.88,152.86,3.2714]
[1728995105509,15.75,152.88,152.83,1.3815]
[1728995105711,19.0206,152.9,152.87,3.2712]
[1728995105901,21.19,152.92,152.83,17.1315]
[1728995106103,24.4603,152.92,152.85,3.2715]
[1728995106306,5.44,152.92,152.86,1.3775]
[1728995107606,5.44,152.92,152.89,3.2706]
[1728995108312,24.4603,152.92,152.88,3.271]
[1728995108714,15.75,152.9,152.83,1.3815]
[1728995109008,15.75,152.87,152.81,6.7482]
[1728995109204,15.75,152.85,152.81,1.3082]
[1728995109405,15.75,152.83,152.81,1.3082]
[1728995109610,15.75,152.83,152.78,5.44]
[1728995109908,15.75,152.83,152.81,3.2724]
[1728995110601,15.75,152.82,152.78,3.273]
[1728995111014,15.75,152.8,152.75,1.3082]
[1728995111213,15.75,152.78,152.75,1.3082]
[1728995111408,15.75,152.78,152.75,4.5818]
[1728995112417,15.75,152.78,152.76,3.2735]
[1728995112913,15.75,152.78,152.75,1.3082]
[1728995112914,15.75,152.78,152.75,4.5818]
[1728995116010,19.0225,152.82,152.78,3.2731]
[1728995116217,24.4625,152.82,152.78,3.2731]
[1728995119411,3.2725,152.81,152.78,3.2731]
[1728995121916,15.75,152.79,152.73,1.3985]
[1728995122114,15.75,152.77,152.73,1.3985]
[1728995122512,15.75,152.77,152.75,3.2736]
[1728995123221,15.75,152.77,152.73,1.3985]
[1728995123619,15.75,152.79,152.73,1.3985]
[1728995124116,15.75,152.79,152.76,3.2734]
[1728995126020,15.75,152.79,152.73,1.3985]
[1728995126234,15.75,152.76,152.73,3.274]
[1728995126819,15.75,152.76,152.7,1.3876]
[1728995127125,19.07384734,152.76,152.7,1.3876]
[1728995127518,21.19,152.78,152.7,17.1376]
[1728995127723,3.21708074,152.77,152.7,17.1376]
[1728995128026,21.19,152.78,152.7,17.1376]
[1728995128225,3.31172966,152.77,152.7,17.1376]
[1728995128428,21.19,152.78,152.75,3.2736]
[1728995129226,24.4633,152.78,152.7,1.3876]
[1728995129728,21.19,152.78,152.7,1.3876]
[1728995129926,3.2733,152.77,152.73,3.2741]
[1728995130125,3.34426316,152.76,152.73,3.2741]
[1728995130325,3.2733,152.77,152.73,3.2741]
[1728995130525,24.4632,152.78,152.74,3.2739]
[1728995131430,19.0236,152.76,152.72,3.2743]
[1728995131624,19.09262542,152.76,152.7,1.3876]
[1728995132129,19.09262542,152.76,152.73,3.2741]
[1728995132930,19.09262542,152.76,152.7,1.3876]
[1728995133128,15.75,152.74,152.7,1.3876]
[1728995133821,15.75,152.74,152.71,3.2745]
[1728995134028,15.75,152.74,152.67,8.1825]
[1728995134531,21.19,152.74,152.67,8.1825]
[1728995135124,21.19,152.74,152.71,3.2746]
[1728995137125,21.19,152.74,152.67,8.1825]
[1728995137330,21.19,152.74,152.72,3.2743]
[1728995137331,5.44,152.74,152.72,3.2743]
[1728995137526,15.75,152.79,152.67,23.9325]
[1728995137731,5.44,152.77,152.74,3.2739]
[1728995137928,15.75,152.79,152.7,15.75]
[1728995138123,5.44,152.78,152.71,1.3142]
[1728995138332,5.44,152.78,152.75,3.2737]
[1728995138529,3.28027821,152.77,152.75,3.2737]
[1728995139327,3.28027821,152.77,152.74,3.2738]
[1728995140134,3.28027821,152.77,152.75,3.2737]
[1728995140734,5.44,152.78,152.75,3.2737]
[1728995141036,3.32547825,152.77,152.75,3.2737]
[1728995141235,5.44,152.78,152.75,3.2737]
[1728995141733,3.20330713,152.77,152.75,3.2737]
[1728995141933,3.20330713,152.77,152.71,1.3142]
[1728995142233,24.463,152.79,152.76,3.2735]
[1728995142725,24.463,152.79,152.75,3.2737]
[1728995143535,24.463,152.79,152.71,1.3142]
[1728995143740,24.463,152.79,152.76,3.2735]
[1728995145840,3.2733,152.78,152.76,3.2735]
[1728995146042,3.24260817,152.77,152.76,3.2735]
[1728995150144,3.24260817,152.77,152.71,1.3142]
[1728995150441,3.24260817,152.77,152.75,3.2736]
[1728995151039,3.24260817,152.77,152.76,3.2735]
[1728995151252,24.463,152.79,152.76,3.2735]
[1728995151438,21.19,152.79,152.71,1.3142]
[1728995151633,5.44,152.79,152.78,3.2731]
[1728995152345,5.44,152.8,152.78,3.2731]
[1728995153336,15.75,152.81,152.8,3.2727]
[1728995153543,21.19,152.81,152.8,3.2727]
[1728995155347,24.4626,152.81,152.78,3.273]
[1728995157146,24.4626,152.81,152.73,1.3487]
[1728995157352,24.4626,152.81,152.79,3.2728]
[1728995160546,3.31959827,152.85,152.74,15.75]
[1728995160743,5.44,152.87,152.78,15.75]
[1728995161051,5.44,152.87,152.81,15.75]
[1728995161245,3.28945792,152.89,152.87,3.271]
[1728995161442,19.03945792,152.89,152.8,6.7793]
[1728995161848,19.03945792,152.89,152.86,3.2712]
[1728995162047,5.42,152.9,152.81,15.75]
[1728995162446,5.42,152.9,152.83,3.2719]
[1728995162644,5.42,152.9,152.81,15.75]
[1728995163146,5.42,152.9,152.87,3.2711]
[1728995163648,5.42,152.91,152.88,3.2708]
[1728995164153,8.64786021,152.91,152.88,3.2708]
[1728995164554,8.64786021,152.91,152.89,3.2706]
[1728995165041,3.27,152.93,152.89,3.2706]
[1728995165241,8.69,152.93,152.89,3.2706]
[1728995165450,19.0198,152.94,152.89,3.2706]
[1728995165748,5.42,152.93,152.89,3.2706]
[1728995165941,3.25862044,152.92,152.89,3.2706]
[1728995166145,5.42,152.93,152.89,3.2706]
[1728995166346,8.6899,152.93,152.87,3.2711]
[1728995166544,19.09108402,152.92,152.85,2.8152]
[1728995166944,22.36138402,152.92,152.87,3.271]
[1728995167548,70.74,152.95,152.9,3.2704]
[1728995167549,21.17,152.94,152.9,3.2704]
[1728995167952,15.75,152.94,152.85,18.5652]
[1728995168151,5.42,152.95,152.87,15.75]
[1728995168353,5.42,152.95,152.89,3.2707]
[1728995168544,3.2531698,152.94,152.87,15.75]
[1728995168750,5.42,152.95,152.87,15.75]
[1728995168951,3.31371063,152.94,152.91,3.2702]
[1728995169659,19.06371063,152.94,152.91,3.2702]
[1728995169951,19.06371063,152.94,152.85,18.5652]
[1728995170158,15.75,152.92,152.88,3.2708]
[1728995170858,18.98136413,152.92,152.88,3.2708]
[1728995171553,22.25156413,152.92,152.88,3.2708]
[1728995172555,18.98136413,152.92,152.87,3.2712]
[1728995172752,18.98136413,152.92,152.85,2.8152]
[1728995173061,18.98136413,152.92,152.87,3.2712]
[1728995173255,18.98136413,152.92,152.85,2.8152]
[1728995173960,18.98136413,152.92,152.88,3.2708]
[1728995174159,3.2704,152.91,152.85,2.8152]
[1728995174360,24.40136413,152.92,152.85,2.8152]
[1728995174760,3.2705,152.91,152.85,2.8152]
[1728995174960,24.40136413,152.92,152.88,3.2708]
[1728995175861,24.40136413,152.92,152.89,3.2708]
[1728995176859,24.40136413,152.92,152.85,2.8152]
[1728995177054,5.42,152.92,152.86,15.75]
[1728995177259,5.42,152.92,152.86,17.0462]
[1728995177763,5.42,152.92,152.9,3.2704]
[1728995180266,1.3721,152.99,152.89,15.75]
[1728995180460,5.42,152.96,152.94,3.2696]
[1728995183771,19.0196,152.95,152.91,3.2702]
[1728995184067,3.25145352,152.94,152.91,3.2702]
[1728995184463,6.52115352,152.94,152.91,3.2702]
[1728995184867,3.27,152.93,152.89,3.2707]
[1728995186770,3.2704,152.91,152.87,3.2711]
[1728995187164,21.17,152.92,152.87,3.2711]
[1728995187363,3.2706,152.9,152.87,3.2711]
[1728995187862,15.75,152.9,152.85,2.8152]
[1728995188070,15.75,152.88,152.82,6.7199]
[1728995188461,15.75,152.88,152.83,3.272]
[1728995188462,15.75,152.86,152.83,3.272]
[1728995191873,15.75,152.86,152.79,5.42]
[1728995191874,21.17,152.88,152.79,21.17]
[1728995192074,21.17,152.88,152.85,3.2715]
[1728995192276,21.17,152.88,152.79,21.17]
[1728995192763,3.2713,152.87,152.79,21.17]
[1728995193163,21.17,152.88,152.79,21.17]
[1728995193469,24.4411,152.88,152.84,3.2718]
[1728995195371,21.17,152.88,152.79,21.17]
[1728995195578,3.2715,152.86,152.79,21.17]
[1728995196172,19.0215,152.86,152.82,3.2722]
[1728995196378,15.75,152.86,152.79,5.42]
[1728995196670,15.75,152.82,152.79,3.2728]
[1728995197375,5.42,152.84,152.8,3.2727]
[1728995197376,24.41986429,152.84,152.8,3.2727]
[1728995197568,24.41986429,152.84,152.76,2.6993]
[1728995197766,5.42,152.84,152.78,15.75]
[1728995197970,5.42,152.86,152.8,15.75]
[1728995198678,5.42,152.86,152.84,3.2717]
[1728995201777,5.42,152.86,152.79,1.3096]
[1728995201778,27.66822532,152.86,152.82,3.2722]
[1728995201983,27.66822532,152.86,152.76,9.2464]
[1728995201984,15.75,152.83,152.77,5.42]
[1728995202573,19.0222,152.83,152.79,3.2728]
[1728995206389,15.75,152.83,152.8,3.2726]
[1728995208387,15.75,152.85,152.77,5.42]
[1728995208587,15.75,152.85,152.82,3.2721]
[1728995208791,3.22662532,152.86,152.79,15.75]
[1728995209089,19.0208,152.89,152.85,3.2714]
[1728995209284,24.4408,152.89,152.85,3.2714]
[1728995209593,70.68,152.92,152.83,15.75]
[1728995209889,5.42,152.91,152.88,3.2709]
[1728995212392,21.17,152.91,152.84,2.7995]
[1728995212995,24.4403,152.91,152.87,3.2711]
[1728995216090,21.17,152.91,152.84,2.7995]
[1728995216493,3.2707,152.9,152.86,3.2714]
[1728995217091,15.75,152.89,152.86,3.2714]
[1728995217293,19.0209,152.89,152.84,1.3704]
[1728995217495,15.75,152.89,152.85,3.2716]
[1728995218390,3.2711,152.88,152.85,3.2716]
[1728995218797,15.75,152.86,152.83,3.272]
[1728995218996,6.53389223,152.85,152.78,2.7523]
[1728995219195,3.26209223,152.85,152.78,2.7523]
[1728995219396,3.26209223,152.85,152.81,3.2724]
[1728995219793,3.26209223,152.85,152.78,2.7523]
[1728995219998,6.53379223,152.85,152.82,3.2722]
[1728995225198,3.26209223,152.85,152.82,3.2722]
[1728995225406,3.26209223,152.85,152.78,2.7523]
[1728995225407,15.75,152.85,152.78,2.7523]
[1728995225602,15.75,152.9,152.81,15.75]
[1728995225903,15.75,152.91,152.83,15.75]
[1728995226102,15.75,152.91,152.81,5.4]
[1728995226103,5.4,152.92,152.84,17.1069]
[1728995226300,77.2371,153.0,152.86,15.75]
[1728995226301,15.75,152.97,152.86,15.75]
[1728995226504,0.9951525,152.96,152.94,3.2696]
[1728995226707,5.4,152.98,152.91,1.3038]
[1728995226903,70.7,153.0,152.91,1.3038]
[1728995227104,21.15,153.0,152.95,3.2693]
[1728995227308,19.0189,152.98,152.92,2.6987]
[1728995227509,15.75,152.98,152.92,1.4017]
[1728995227706,15.75,152.98,152.93,3.2698]
[1728995228102,15.75,152.96,152.91,1.3038]
[1728995229209,15.75,152.96,152.92,3.2701]
[1728995229516,15.75,152.96,152.91,1.3038]
[1728995229711,15.75,152.99,152.91,1.3038]
[1728995230718,19.0188,152.99,152.94,3.2696]
[1728995231307,15.75,152.96,152.94,3.2696]
[1728995232917,19.0189,152.98,152.94,3.2696]
[1728995234018,15.75,152.98,152.96,3.2693]
[1728995234814,8.6685,153.0,152.96,3.2693]
[1728995235413,8.6685,153.0,152.97,3.269]
[1728995235617,8.6685,153.0,152.91,1.3038]
[1728995236016,8.6685,153.0,152.96,3.2691]
[1728995236315,5.4,153.0,152.96,3.2691]
[1728995236509,19.0187,152.99,152.96,3.2691]
[1728995242518,25.7566,153.01,152.98,3.2688]
[1728995243316,4.26458945,153.0,152.98,3.2688]
[1728995243631,3.2684,153.0,152.98,3.2688]
[1728995244225,24.4183,153.01,152.98,3.2688]
[1728995244422,8.65638323,153.02,152.99,3.2685]
[1728995244624,5.4,153.02,152.99,3.2685]
[1728995244922,8.6681,153.02,152.99,3.2685]
[1728995245125,3.34893649,153.01,152.99,3.2685]
[1728995245525,6.61713649,153.01,152.99,3.2685]
[1728995245724,3.34893649,153.01,153.0,3.2684]
[1728995246818,5.4,153.02,153.0,3.2684]
[1728995247024,3.20436867,153.01,152.94,15.75]
[1728995247631,3.20436867,153.01,152.96,3.2692]
[1728995247826,3.20436867,153.01,152.94,15.75]
[1728995249127,3.2684,153.0,152.93,6.7964]
[1728995249630,22.22266867,153.01,152.97,3.2689]
[1728995254836,22.22266867,153.01,152.93,6.7964]
[1728995255027,3.20436867,153.01,152.98,3.2687]
[1728995257034,70.7,153.08,152.97,21.15]
[1728995257228,3.20089555,153.07,152.99,15.75]
[1728995257432,1.2881,153.12,153.0,1.3288]
[1728995257433,5.4,153.08,153.0,1.3288]
[1728995257627,3.21401784,153.07,153.0,1.3288]
[1728995257833,3.21401784,153.07,153.01,15.75]
[1728995258929,8.6667,153.08,153.04,3.2674]
[1728995259131,3.2667,153.08,153.04,3.2674]
[1728995259330,3.24246048,153.07,153.04,3.2674]
[1728995260436,3.24246048,153.07,153.0,17.0788]
[1728995260632,6.50956048,153.07,153.0,17.0788]
[1728995261229,19.0168,153.08,153.0,17.0788]
[1728995261631,15.75,153.06,153.0,1.3288]
[1728995261827,15.75,153.04,152.98,2.6499]
[1728995262028,15.75,153.03,152.98,1.3448]
[1728995262433,3.2681,153.02,152.98,4.6135]
[1728995262737,15.75,153.01,152.98,4.6135]
[1728995262935,3.21009472,153.0,152.98,1.3448]
[1728995263127,24.42280721,153.01,152.91,1.4215]
[1728995263334,15.75,152.96,152.91,1.4215]
[1728995263850,15.75,152.94,152.91,1.4215]
[1728995264239,15.75,152.94,152.88,5.38]
[1728995265139,15.75,152.94,152.87,1.4215]
[1728995265345,3.2693,152.96,152.87,1.4215]
[1728995265547,15.75,152.95,152.87,1.4215]
[1728995265943,21.15,152.95,152.87,1.4215]
[1728995266448,24.4195,152.95,152.88,3.2709]
[1728995268050,5.4,152.95,152.87,1.4215]
[1728995268845,5.4,152.95,152.9,3.2705]
[1728995270746,5.4,152.95,152.89,3.2707]
[1728995271149,8.6696,152.95,152.89,3.2707]
[1728995272851,8.6696,152.95,152.89,4.6262]
[1728995275349,5.4,152.95,152.89,4.6262]
[1728995275547,3.2698,152.94,152.89,4.6262]
[1728995276249,15.75,152.95,152.89,1.3555]
[1728995276450,15.75,152.95,152.87,1.4215]
[1728995276451,3.2704,152.91,152.87,1.4215]
[1728995276760,15.75,152.93,152.87,1.4215]
[1728995276949,3.27,152.93,152.87,1.4215]
[1728995277457,3.27,152.93,152.88,1.3114]
[1728995278147,6.55382743,152.93,152.88,4.5823]
[1728995278348,3.27,152.93,152.88,4.5823]
[1728995278559,3.2701,152.92,152.88,4.5823]
[1728995278861,3.24718414,152.92,152.88,1.3114]
[1728995279045,15.75,152.95,152.88,1.3114]
[1728995280951,3.2703,152.92,152.88,1.3114]
[1728995283947,3.2704,152.91,152.88,1.3114]
[1728995285061,3.2704,152.91,152.88,4.5824]
[1728995285260,3.2704,152.91,152.88,1.3114]
[1728995285957,3.24444906,152.93,152.88,1.3114]
[1728995286161,3.24444906,152.93,152.87,4.6926]
[1728995286162,15.75,152.91,152.87,1.4215]
[1728995286362,3.2788072,152.9,152.87,1.4215]
[1728995286554,3.2709,152.89,152.87,1.4215]
[1728995286755,6.5422825,152.89,152.87,1.4215]
[1728995287361,3.2709,152.89,152.87,1.4215]
[1728995287960,6.50628289,152.89,152.87,1.4215]
[1728995288163,3.2709,152.89,152.87,1.4215]
[1728995289756,3.28054603,152.9,152.83,15.75]
[1728995289962,3.2713,152.87,152.84,3.2718]
[1728995290958,3.2713,152.87,152.83,3.2719]
[1728995292662,3.2713,152.87,152.82,2.7545]
[1728995292868,3.31785023,152.89,152.85,3.2716]
[1728995292869,3.2709,152.89,152.85,3.2716]
[1728995294167,5.38,152.92,152.87,15.75]
[1728995294360,5.38,152.94,152.87,15.75]
[1728995294562,5.38,152.97,152.91,15.75]
[1728995294865,5.38,152.97,152.88,1.326]
[1728995294866,3.2694,152.96,152.93,15.75]
[1728995295769,5.38,152.99,152.93,15.75]
[1728995295957,3.2695,152.95,152.93,15.75]